fUSD/lending_fUSD_20251117
["ID","MTS","AMOUNT","RATE_DAILY","PERIOD"]
[394275766,1763415168303,-632.35472861,0.00041095,30]
[394275767,1763415168371,-500.0,0.00041095,30]
[394275768,1763415168440,-500.0,0.00041095,30]
[394275769,1763415168507,-500.0,0.00041095,30]
[394275770,1763415168576,-500.0,0.00041095,30]
[394275771,1763415168644,-500.0,0.00041095,30]
[394275772,1763415168714,-500.0,0.00041095,30]
[394275773,1763415168783,-500.0,0.00041095,30]
[394275774,1763415168846,-414.21295154,0.00041095,30]
[394275775,1763415168916,-500.0,0.00041095,30]
[394275776,1763415168989,-500.0,0.00041095,30]
[394275777,1763415169054,-500.0,0.00041095,30]
[394275778,1763415169119,-500.0,0.00041095,30]
[394275779,1763415169181,-500.0,0.00041095,30]
[394275780,1763415169244,-500.0,0.00041095,30]
[394275781,1763415169309,-500.0,0.00041095,30]
[394275782,1763415169381,-500.0,0.00041095,30]
[394275783,1763415169456,-500.0,0.00041095,30]
[394275784,1763415169527,-500.0,0.00041095,30]
[394275785,1763415169601,-500.0,0.00041095,30]
[394275786,1763415169671,-500.0,0.00041095,30]
[394275787,1763415169736,-500.0,0.00041095,30]
[394275788,1763415169800,-500.0,0.00041095,30]
[394275789,1763415170049,-500.0,0.00041095,30]
[394275790,1763415170119,-500.0,0.00041095,30]
[394275791,1763415170190,-500.0,0.00041095,30]
[394275792,1763415170256,-500.0,0.00041095,30]
[394275793,1763415170321,-251.53783462,0.00041095,30]
[394275794,1763415170387,-500.0,0.00041095,30]
[394275795,1763415170455,-500.0,0.00041095,30]
[394275796,1763415170525,-500.0,0.00041095,30]
[394275797,1763415170593,-500.0,0.00041095,30]
[394275798,1763415170659,-500.0,0.00041095,30]
[394275799,1763415170725,-344.76709448,0.00041095,30]
[394275800,1763415170794,-500.0,0.00041095,30]
[394275801,1763415170862,-500.0,0.00041095,30]
[394275802,1763415170931,-500.0,0.00041095,30]
[394275803,1763415170994,-500.0,0.00041095,30]
[394275804,1763415171059,-500.0,0.00041095,30]
[394275805,1763415171123,-500.0,0.00041095,30]
[394275806,1763415171187,-500.0,0.00041095,30]
[394275807,1763415171251,-500.0,0.00041095,30]
[394275808,1763415171313,-611.54050492,0.00041095,30]
[394275809,1763415171378,-500.0,0.00041095,30]
[394275810,1763415171446,-500.0,0.00041095,30]
[394275811,1763415171517,-500.0,0.00041095,30]
[394275812,1763415171585,-588.86281792,0.00041095,30]
[394275813,1763415171651,-414.029948,0.00041095,30]
[394275814,1763415171718,-154.78206969,0.00041095,30]
[394275815,1763415171786,-414.029948,0.00041095,30]
[394275816,1763415171856,-414.029948,0.00041095,30]
[394275817,1763415171927,-495.06092465,0.00041095,30]
[394275818,1763415172002,-414.029948,0.00041095,30]
[394275819,1763415172080,-414.029948,0.00041095,30]
[394275820,1763415172151,-500.0,0.00041095,30]
[394275821,1763415172216,-414.029948,0.00041095,30]
[394275822,1763415172280,-500.0,0.00041095,30]
[394275823,1763415172346,-414.029948,0.00041095,30]
[394275824,1763415172410,-500.0,0.00041095,30]
[394275825,1763415172474,-500.0,0.00041095,30]
[394275826,1763415172540,-414.029948,0.00041095,30]
[394275827,1763415172604,-400.0,0.00041095,30]
[394275828,1763415172669,-500.0,0.00041095,30]
[394275829,1763415172731,-500.0,0.00041095,30]
[394275830,1763415172792,-500.0,0.00041095,30]
[394275831,1763415172853,-488.3596096,0.00041095,30]
[394275832,1763415172921,-500.0,0.00041095,30]
[394275833,1763415172995,-414.029948,0.00041095,30]
[394275834,1763415173066,-500.0,0.00041095,30]
[394275835,1763415173138,-414.029948,0.00041095,30]
[394275836,1763415173212,-500.0,0.00041095,30]
[394275837,1763415173285,-500.0,0.00041095,30]
[394275838,1763415173358,-414.029948,0.00041095,30]
[394275839,1763415173430,-305.73731395,0.00041095,30]
[394275840,1763415173507,-414.029948,0.00041095,30]
[394275841,1763415173586,-500.0,0.00041095,30]
[394275842,1763415173663,-414.029948,0.00041095,30]
[394275843,1763415173734,-500.0,0.00041095,30]
[394275844,1763415173808,-414.029948,0.00041095,30]
[394275845,1763415173877,-500.0,0.00041095,30]
[394275846,1763415173948,-414.029948,0.00041095,30]
[394275847,1763415174015,-500.0,0.00041095,30]
[394275848,1763415174083,-500.0,0.00041095,30]
[394275849,1763415174158,-414.029952,0.00041095,30]
[394275850,1763415174227,-500.0,0.00041095,30]
[394275851,1763415174294,-571.94245533,0.00041095,30]
[394275852,1763415174360,-500.0,0.00041095,30]
[394275853,1763415174432,-500.0,0.00041095,30]
[394275854,1763415174501,-567.76057211,0.00041095,30]
[394275855,1763415174573,-500.0,0.00041095,30]
[394275856,1763415174640,-500.0,0.00041095,30]
[394275857,1763415174710,-556.7558242,0.00041095,30]
[394275858,1763415174775,-151.0,0.00041095,120]
[394275859,1763415174843,-500.0,0.00041095,30]
[394275860,1763415174913,-500.0,0.00041095,30]
[394275861,1763415174983,-500.0,0.00041095,30]
[394275862,1763415175049,-500.0,0.00041095,30]
[394275863,1763415175118,-500.0,0.00041095,30]
[394275864,1763415175184,-500.0,0.00041095,30]
[394275865,1763415175251,-500.0,0.00041095,30]
[394275866,1763415175318,-500.0,0.00041095,30]
[394275867,1763415175385,-500.0,0.00041095,30]
[394275868,1763415175449,-500.0,0.00041095,30]
[394275869,1763415175515,-500.0,0.00041095,30]
[394275870,1763415175582,-500.0,0.00041095,30]
[394275871,1763415175651,-500.0,0.00041095,30]
[394275872,1763415175727,-500.0,0.00041095,30]
[394275873,1763415175796,-500.0,0.00041095,30]
[394275874,1763415175870,-500.0,0.00041095,30]
[394275875,1763415175942,-500.0,0.00041095,30]
[394275876,1763415176011,-500.0,0.00041095,30]
[394275877,1763415176078,-500.0,0.00041095,30]
[394275878,1763415176144,-617.39544108,0.00041095,30]
[394275879,1763415176209,-500.0,0.00041095,30]
[394275880,1763415176277,-500.0,0.00041095,30]
[394275881,1763415176345,-500.0,0.00041095,30]
[394275882,1763415176411,-500.0,0.00041095,30]
[394275883,1763415176481,-500.0,0.00041095,30]
[394275884,1763415176803,-182.46369488,0.00041095,30]
[394275885,1763415176874,-500.0,0.00041095,30]
[394275886,1763415176947,-500.0,0.00041095,30]
[394275887,1763415177019,-500.0,0.00041095,30]
[394275888,1763415177092,-500.0,0.00041095,30]
[394275889,1763415177165,-500.0,0.00041095,30]
[394275890,1763415177236,-500.0,0.00041095,30]
[394275891,1763415177310,-500.0,0.00041095,30]
[394275892,1763415177383,-500.0,0.00041095,30]
[394275893,1763415177455,-500.0,0.00041095,30]
[394275894,1763415177527,-500.0,0.00041095,30]
[394275895,1763415177600,-500.0,0.00041095,30]
[394275896,1763415177673,-500.0,0.00041095,30]
[394275897,1763415177747,-500.0,0.00041095,30]
[394275898,1763415177819,-500.0,0.00041095,30]
[394275899,1763415177890,-616.95507435,0.00041095,30]
[394275900,1763415177959,-500.0,0.00041095,30]
[394275901,1763415178028,-500.0,0.00041095,30]
[394275902,1763415178097,-500.0,0.00041095,30]
[394275903,1763415178166,-618.41439254,0.00041095,30]
[394275904,1763415178235,-500.0,0.00041095,30]
[394275905,1763415178304,-500.0,0.00041095,30]
[394275906,1763415178376,-500.0,0.00041095,30]
[394275907,1763415178446,-500.0,0.00041095,30]
[394275908,1763415178514,-687.64,0.00041095,30]
[394275909,1763415178582,-400.0,0.00041096,120]
[394275910,1763415178654,-284.59,0.000411,60]
[394275911,1763415178722,-157.56,0.000411,30]
[394275912,1763415178790,-264415.2776,0.00041213,30]
[394275913,1763415178861,-302.91714627,0.00041368,105]
[394275914,1763415178929,-200.0,0.00041375,120]
[394275915,1763415178996,-785.0,0.00041435,120]
[394275916,1763415179062,-210.3,0.00041458,120]
[394275917,1763415179131,-50000.0,0.00041522,30]
[394275918,1763415179197,-50000.0,0.00041522,31]
[394275919,1763415179270,-50000.0,0.00041522,32]
[394275920,1763415179354,-50000.0,0.00041522,33]
[394275921,1763415179443,-50000.0,0.00041522,31]
[394275922,1763415179517,-50000.0,0.00041522,32]
[394275923,1763415179618,-169.45,0.00041534,30]
[394275924,1763415179688,-169.45,0.00041534,30]
[394275925,1763415179759,-266.17,0.00041534,30]
[394275926,1763415179827,-169.45,0.00041534,30]
[394275927,1763415179893,-169.45,0.00041534,30]
[394275928,1763415179960,-169.45,0.00041534,30]
[394275929,1763415180025,-169.45,0.00041534,30]
[394275930,1763415180095,-337.24,0.00041534,30]
[394275931,1763415180162,-287.0,0.00041638,120]
[394275932,1763415180233,-827.76,0.00041897,120]
[394275933,1763415180304,-50000.0,0.00042,42]
[394275934,1763415180370,-500.0,0.00042,30]
[394275935,1763415180443,-1938.24867991,0.00042,120]
[394275936,1763415180513,-307.9,0.00042,30]
[394275937,1763415180584,-5116.52446943,0.00042,60]
[394275938,1763415180655,-157.56,0.000423,30]
[394275939,1763415180726,-287.0,0.00042438,120]
[394275940,1763415180793,-943.0,0.00042591,30]
[394275941,1763415180863,-1379.39,0.000428,120]
[394275942,1763415180927,-2000.0,0.00042975,120]
[394275943,1763415180990,-200.0,0.00042975,120]
[394275944,1763415181054,-500.0,0.00043,30]
[394275945,1763415181120,-943.0,0.0004303,30]
[394275946,1763415181186,-156.78184958,0.00043397,30]
[394275947,1763415181251,-943.0,0.00043469,30]
[394275948,1763415181313,-156.78184958,0.00043863,30]
[394275949,1763415181374,-151.20527435,0.00043863,30]
[394275950,1763415181438,-157.56,0.000439,30]
[394275951,1763415181504,-943.0,0.00043908,30]
[394275952,1763415181569,-88766.74435058,0.00043988,120]
[394275953,1763415181633,-153.0,0.00044,120]
[394275954,1763415181701,-15000.0,0.0004415,120]
[394275955,1763415181776,-943.0,0.00044348,30]
[394275956,1763415181846,-15000.0,0.000445,120]
[394275957,1763415181931,-943.0,0.00044787,30]
[394275958,1763415182017,-507.41130803,0.0004488,120]
[394275959,1763415182089,-153.0,0.000449,120]
[394275960,1763415182159,-7039.95379464,0.000449,60]
[394275961,1763415182226,-15000.0,0.0004491,120]
[394275962,1763415182296,-50000.0,0.00045,45]
[394275963,1763415182361,-35000.0,0.00045,120]
[394275964,1763415182428,-500.0,0.00045,120]
[394275965,1763415182496,-1030.84248581,0.00045,120]
[394275966,1763415182565,-217.18896917,0.00045,120]
[394275967,1763415182630,-1776.42063832,0.00045,120]
[394275968,1763415182696,-200.0,0.00045,120]
[394275969,1763415182762,-420.0,0.00045,120]
[394275970,1763415182826,-300.0,0.00045,120]
[394275971,1763415182889,-150.0,0.00045,120]
[394275972,1763415182950,-5000.0,0.0004507,120]
[394275973,1763415183013,-943.0,0.00045226,30]
[394275974,1763415183082,-35000.0,0.000453,120]
[394275975,1763415183147,-15000.0,0.0004537,120]
[394275976,1763415183215,-157.56,0.000454,30]
[394275977,1763415183487,-25000.0,0.000455,120]
[394275978,1763415183561,-284.82133361,0.000455,120]
[394275979,1763415183634,-153.0,0.000458,120]
[394275980,1763415183711,-15000.0,0.00046,120]
[394275981,1763415183784,-373.07084416,0.00046,120]
[394275982,1763415183862,-471.25858658,0.00046,120]
[394275983,1763415183940,-210.3,0.00046064,120]
[394275984,1763415184014,-15000.0,0.0004645,120]
[394275985,1763415184082,-35000.0,0.000465,120]
[394275986,1763415184152,-15000.0,0.000466,120]
[394275987,1763415184216,-10878.48401861,0.000466,120]
[394275988,1763415184283,-153.0,0.000467,120]
[394275989,1763415184349,-157.56,0.000467,30]
[394275990,1763415184416,-500.0,0.00046904,30]
[394275991,1763415184485,-827.76,0.00046944,120]
[394275992,1763415184552,-992.61954607,0.00047,30]
[394275993,1763415184623,-25000.0,0.0004706,120]
[394275994,1763415184691,-35000.0,0.0004706,120]
[394275995,1763415184761,-25000.0,0.0004706,120]
[394275996,1763415184827,-500.0,0.00047178,30]
[394275997,1763415184896,-500.0,0.00047452,30]
[394275998,1763415184963,-25000.0,0.000475,120]
[394275999,1763415185029,-153.0,0.000476,120]
[394276000,1763415185095,-35000.0,0.0004767,120]
[394276001,1763415185157,-817.67,0.00047726,30]
[394276002,1763415185236,-50000.0,0.00048,48]
[394276003,1763415185305,-20408.0,0.00048,120]
[394276004,1763415185371,-25000.0,0.00048,120]
[394276005,1763415185437,-373.07084416,0.00048,120]
[394276006,1763415185506,-471.25858658,0.00048,120]
[394276007,1763415185576,-500.0,0.00048,30]
[394276008,1763415185648,-1698.57,0.00048,120]
[394276009,1763415185716,-157.56,0.00048,30]
[394276010,1763415185784,-511.91185,0.00048,30]
[394276011,1763415185848,-296.07290183,0.00048,120]
[394276012,1763415185913,-307.76269592,0.00048,120]
[394276013,1763415185979,-322.2,0.00048228,120]
[394276014,1763415186047,-25000.0,0.0004829,120]
[394276015,1763415186110,-25000.0,0.000485,120]
[394276016,1763415186172,-153.0,0.000485,120]
[394276017,1763415186233,-183.44,0.00048536,120]
[394276018,1763415186296,-35000.0,0.0004859,120]
[394276019,1763415186357,-25000.0,0.0004875,120]
[394276020,1763415186428,-15000.0,0.00049,120]
[394276021,1763415186503,-20000.0,0.00049,120]
[394276022,1763415186569,-196000.0,0.00049,120]
[394276023,1763415186636,-35000.0,0.0004905,120]
[394276024,1763415186702,-500.0,0.00049315,30]
[394276025,1763415186766,-476.54,0.00049315,30]
[394276026,1763415186829,-500.0,0.00049315,120]
[394276027,1763415186892,-153.0,0.000494,120]
[394276028,1763415186961,-1000.0,0.00049499,120]
[394276029,1763415187031,-25000.0,0.0004951,120]
[394276030,1763415187099,-25000.0,0.0004951,120]
[394276031,1763415187164,-15000.0,0.0004951,120]
[394276032,1763415187232,-35000.0,0.0004982,120]
[394276033,1763415187294,-2621.07634038,0.00049979,80]
[394276034,1763415187355,-306.7871565,0.00049987,120]
[394276035,1763415187418,-1000.0,0.0004999,120]
[394276036,1763415187484,-1000.0,0.0004999,120]
[394276037,1763415187551,-1000.0,0.0004999,120]
[394276038,1763415187618,-1000.0,0.0004999,120]
[394276039,1763415187689,-1000.0,0.0004999,120]
[394276040,1763415187756,-1000.0,0.0004999,120]
[394276041,1763415187822,-1000.0,0.0004999,120]
[394276042,1763415187891,-1000.0,0.0004999,120]
[394276043,1763415187961,-1000.0,0.0004999,120]
[394276044,1763415188029,-1000.0,0.0004999,120]
[394276045,1763415188098,-1000.0,0.0004999,120]
[394276046,1763415188167,-1000.0,0.0004999,120]
[394276047,1763415188238,-1000.0,0.0004999,120]
[394276048,1763415188307,-1000.0,0.0004999,120]
[394276049,1763415188379,-1000.0,0.0004999,120]
[394276050,1763415188460,-1000.0,0.0004999,120]
[394276051,1763415188538,-1000.0,0.0004999,120]
[394276052,1763415188610,-1000.0,0.0004999,120]
[394276053,1763415188683,-1000.0,0.0004999,120]
[394276054,1763415188760,-1000.0,0.0004999,120]
[394276055,1763415188833,-1000.0,0.00049999,120]
[394276056,1763415188908,-285.30517008,0.00049999,120]
[394276057,1763415188987,-50000.0,0.0005,50]
[394276058,1763415189065,-15745.79023115,0.0005,120]
[394276059,1763415190132,-158.5068257,0.00017,2]
[394276060,1763415192045,-313.04772953,0.00016999,2]
[394276061,1763415192074,-500.0,0.00016999,2]
[394276062,1763415192101,-441.36287368,0.00016999,2]
[394276063,1763415192128,-201.74838553,0.00016999,2]
[394276064,1763415192159,-500.0,0.00016999,2]
[394276065,1763415192192,-500.0,0.00016999,2]
[394276066,1763415192222,-500.0,0.00016999,2]
[394276067,1763415192252,-500.0,0.00016999,2]
[394276068,1763415192282,-500.0,0.00016999,2]
[394276069,1763415192313,-500.0,0.00016999,2]
[394276070,1763415192342,-500.0,0.00016999,2]
[394276071,1763415192387,-500.0,0.00016999,2]
[394276072,1763415192420,-500.0,0.00016999,2]
[394276073,1763415192453,-500.0,0.00016999,2]
[394276074,1763415192482,-559.47188628,0.00016999,2]
[394276075,1763415192511,-500.0,0.00016999,2]
[394276076,1763415192540,-500.0,0.00016999,2]
[394276077,1763415192570,-500.0,0.00016999,2]
[394276078,1763415192597,-195.0,0.00017,2]
[394276079,1763415198799,-374.08414925,0.00016983,2]
[394276080,1763415198825,-300.0,0.00016998,2]
[394276081,1763415198857,-1200.0,0.00016998,2]
[394276082,1763415198881,-300.0,0.00016998,2]
[394276083,1763415198907,-12113.91585075,0.00017,2]
[394276084,1763415199872,-1029.07354144,0.00017,2]
[394276085,1763415199883,-1123.41854583,0.00017,2]
[394276086,1763415199894,-1305.76146409,0.00017,2]
[394276087,1763415199905,-11977.43886294,0.00017,2]
[394276088,1763415199916,-758.13499137,0.00017,2]
[394276089,1763415199930,-999.0,0.00017,2]
[394276090,1763415200437,-1291.59084886,0.00017,2]
[394276091,1763415200448,-1109.46875634,0.00017,2]
[394276092,1763415200459,-762.19393845,0.00017,2]
[394276093,1763415200479,-1030.04000014,0.00017,2]
[394276094,1763415200490,-8480.38968645,0.00017,2]
[394276095,1763415200502,-3641.39258899,0.00017,2]
[394276096,1763415200730,-283.58445496,0.00017,2]
[394276097,1763415200741,-403.70330366,0.00017,2]
[394276098,1763415200752,-1122650.07404545,0.00017,2]
[394276099,1763415200760,-1678.09914957,0.00017,2]
[394276100,1763415200770,-326.45195804,0.00017755,2]
[394276101,1763415200779,-500.0,0.00017855,2]
[394276102,1763415200788,-175.15542271,0.0001789,2]
[394276103,1763415200797,-34294.48674645,0.000179,2]
[394276104,1763415200806,-1200.0,0.00017998,2]
[394276105,1763415200815,-787315.71136047,0.00018,2]
[394276106,1763415200825,-885.1608968,0.00018,2]
[394276107,1763415200834,-6546.8083543,0.00018025,2]
[394276108,1763415200843,-1765.0861499,0.000181,2]
[394276109,1763415200852,-420.0,0.00018566,2]
[394276110,1763415200861,-1680.0,0.00018658,2]
[394276111,1763415200870,-250.0,0.00018699,2]
[394276112,1763415200879,-195.0,0.00018699,2]
[394276113,1763415200888,-4168.98958351,0.000195,7]
[394276114,1763415200897,-155.0,0.00019638,2]
[394276115,1763415200907,-250.0,0.00019701,2]
[394276116,1763415200915,-342.97092283,0.00019701,2]
[394276117,1763415200924,-195.0,0.0001975,2]
[394276118,1763415200934,-2500.0,0.0001975,2]
[394276119,1763415200943,-25174.53819743,0.0002,5]
[394276120,1763415200952,-5041.75253712,0.0002,4]
[394276121,1763415200962,-329.0,0.00020278,2]
[394276122,1763415201138,-34294.48674638,0.00020466,2]
[394276123,1763415201151,-2351.0,0.0002048,2]
[394276124,1763415201160,-151.379112,0.000205,2]
[394276125,1763415201169,-250.19763378,0.00020514,2]
[394276126,1763415201178,-353.8479096,0.00021248,2]
[394276127,1763415201188,-1460.7903965,0.00021617,2]
[394276128,1763415201197,-48906.85265041,0.00022,4]
[394276129,1763415201206,-325.9463951,0.00022419,2]
[394276130,1763415201215,-3292.0,0.0002248,2]
[394276131,1763415201224,-34294.48674638,0.00023032,2]
[394276132,1763415201233,-250.19763378,0.00023127,2]
[394276133,1763415201243,-353.8479096,0.00024596,2]
[394276134,1763415201251,-750.0,0.00024675,2]
[394276135,1763415201261,-267825.775626,0.000248,2]
[394276136,1763415201270,-141078.769319,0.000249,2]
[394276137,1763415201279,-947.55,0.000249,7]
[394276138,1763415201288,-151.0,0.000249,7]
[394276139,1763415201297,-291.880874,0.000249,7]
[394276140,1763415201306,-151.000001,0.000249,7]
[394276141,1763415201315,-291.880874,0.000249,7]
[394276142,1763415201324,-151.0,0.000249,7]
[394276143,1763415201333,-291.880874,0.000249,7]
[394276144,1763415201342,-151.0,0.000249,7]
[394276145,1763415201355,-291.880874,0.000249,7]
[394276146,1763415201364,-151.0,0.000249,7]
[394276147,1763415201374,-151.0,0.000249,7]
[394276148,1763415201383,-151.0,0.000249,7]
[394276149,1763415201392,-151.0,0.000249,7]
[394276150,1763415201401,-151.0,0.000249,7]
[394276151,1763415201410,-151.0,0.000249,7]
[394276152,1763415201419,-151.0,0.000249,7]
[394276153,1763415201430,-151.0,0.000249,7]
[394276154,1763415201439,-188.067985,0.000249,7]
[394276155,1763415201449,-151.0,0.000249,7]
[394276156,1763415201458,-151.0,0.000249,7]
[394276157,1763415201467,-34294.48674638,0.00025598,2]
[394276158,1763415201477,-250.19763378,0.00025741,2]
[394276159,1763415201486,-162.39358173,0.00027,2]
[394276160,1763415201495,-1000.0,0.00027223,7]
[394276161,1763415201504,-353.8479096,0.00027944,2]
[394276162,1763415201514,-578.32,0.00028,7]
[394276163,1763415201523,-321.18,0.00028,2]
[394276164,1763415201533,-34294.48674638,0.00028164,2]
[394276165,1763415201543,-250.19763378,0.00028355,2]
[394276166,1763415201552,-1014.35329886,0.0003013,7]
[394276167,1763415201563,-1009.64488971,0.0003013,2]
[394276168,1763415201572,-34294.48674638,0.00030731,2]
[394276169,1763415201582,-450.0,0.00030798,2]
[394276170,1763415201591,-250.19763378,0.00030968,15]
[394276171,1763415201600,-150.999999,0.00031,2]
[394276172,1763415201610,-353.8479096,0.00031291,2]
[394276173,1763415201619,-1042.04955123,0.00031575,2]
[394276174,1763415201630,-607.52246125,0.00032,5]
[394276175,1763415201639,-947.55,0.00032,7]
[394276176,1763415201649,-604.15441672,0.00032877,7]
[394276177,1763415201659,-202.95,0.00033165,2]
[394276178,1763415201669,-34294.48674638,0.00033297,2]
[394276179,1763415201679,-321.18,0.000333,2]
[394276180,1763415201689,-250.19763378,0.00033582,15]
[394276181,1763415201699,-321.18,0.00034158,2]
[394276182,1763415201708,-353.8479096,0.00034639,2]
[394276183,1763415201718,-578.32,0.000347,30]
[394276184,1763415201727,-188.0,0.00034712,2]
[394276185,1763415201736,-1000.0,0.00034816,7]
[394276186,1763415201746,-222.09537418,0.00035118,2]
[394276187,1763415201755,-222.09537418,0.00035411,2]
[394276188,1763415201764,-222.09537418,0.000358,2]
[394276189,1763415201774,-34294.48674638,0.00035863,2]
[394276190,1763415201784,-222.09537418,0.00036085,2]
[394276191,1763415201794,-250.19763378,0.00036196,15]
[394276192,1763415201803,-2508.91,0.00036294,2]
[394276193,1763415201812,-222.09537418,0.00036328,2]
[394276194,1763415201821,-1000.0,0.00036334,2]
[394276195,1763415201830,-222.09537418,0.00036546,2]
[394276196,1763415201839,-222.09537418,0.00036824,2]
[394276197,1763415201849,-150.0,0.00036962,7]
[394276198,1763415201858,-150.0,0.00036962,7]
[394276199,1763415201867,-150.0,0.00036962,7]
[394276200,1763415201876,-150.0,0.00036962,7]
[394276201,1763415201886,-150.0,0.00036962,7]
[394276202,1763415201896,-150.0,0.00036962,7]
[394276203,1763415201907,-150.0,0.00036962,7]
[394276204,1763415201916,-150.0,0.00036962,7]
[394276205,1763415201925,-150.0,0.00036962,7]
[394276206,1763415201934,-150.0,0.00036962,7]
[394276207,1763415201943,-150.0,0.00036962,7]
[394276208,1763415201953,-150.0,0.00036962,7]
[394276209,1763415201963,-150.0,0.00036962,7]
[394276210,1763415201973,-947.55,0.00037,14]
[394276211,1763415201982,-222.09537418,0.00037021,2]
[394276212,1763415201993,-9235.37157331,0.00037171,3]
[394276213,1763415202004,-150.0,0.00037314,2]
[394276214,1763415202012,-150.0,0.00037335,7]
[394276215,1763415202022,-150.0,0.00037372,7]
[394276216,1763415202032,-150.0,0.00037372,7]
[394276217,1763415202041,-222.09537418,0.00037397,2]
[394276218,1763415202050,-3022.6474106,0.0003744,5]
[394276219,1763415202059,-150.0,0.00037646,7]
[394276220,1763415202068,-578.32,0.000377,30]
[394276221,1763415202077,-150.0,0.00037708,7]
[394276222,1763415202085,-150.0,0.00037783,7]
[394276223,1763415202096,-150.0,0.00037783,7]
[394276224,1763415202105,-150.0,0.00037783,7]
[394276225,1763415202114,-222.09537418,0.00037793,2]
[394276226,1763415202124,-272.8,0.00037932,2]
[394276227,1763415202133,-1852.42,0.00037961,2]
[394276228,1763415202141,-222.09537418,0.00037961,2]
[394276229,1763415202151,-353.8479096,0.00037987,2]
[394276230,1763415202160,-150.0,0.00037988,7]
[394276231,1763415202169,-46176.8578665,0.0003799,3]
[394276232,1763415202179,-47026.2564397,0.0003799,3]
[394276233,1763415202189,-61305.63137584,0.00038,2]
[394276234,1763415202204,-34662.94515768,0.00038,2]
[394276235,1763415202216,-926.43124995,0.00038,2]
[394276236,1763415202228,-479.14855895,0.00038,2]
[394276237,1763415202238,-400.88155885,0.00038,14]
[394276238,1763415202250,-329.0207687,0.00038,14]
[394276239,1763415202263,-6.20767245,0.00038,14]
[394276240,1763415202273,-151.0,0.00038,31]
[394276241,1763415202283,-151.0,0.00038,31]
[394276242,1763415202294,-151.0,0.00038,31]
[394276243,1763415202305,-151.0,0.00038,31]
[394276244,1763415202315,-524.182891,0.00038,31]
[394276245,1763415202326,-151.0,0.00038,31]
[394276246,1763415202335,-151.0,0.00038,31]
[394276247,1763415202344,-524.182891,0.00038,31]
[394276248,1763415202357,-151.0,0.00038,31]
[394276249,1763415202366,-61.38054561,0.00038,31]
[394276250,1763415202378,-89.61945439,0.00038,31]
[394276251,1763415202386,-524.182891,0.00038,31]
[394276252,1763415202395,-151.0,0.00038,31]
[394276253,1763415202405,-524.182891,0.00038,31]
[394276254,1763415202414,-151.0,0.00038,31]
[394276255,1763415202423,-151.0,0.00038,31]
[394276256,1763415202434,-172.966134,0.00038,31]
[394276257,1763415202443,-222.907282,0.00038,31]
[394276258,1763415202453,-151.0,0.00038,31]
[394276259,1763415202462,-172.966134,0.00038,31]
[394276260,1763415202471,-151.0,0.00038,31]
[394276261,1763415202480,-172.966134,0.00038,31]
[394276262,1763415202490,-172.966134,0.00038,31]
[394276263,1763415202499,-151.0,0.00038,31]
[394276264,1763415202508,-151.0,0.00038,31]
[394276265,1763415202518,-151.0,0.00038,31]